fUSD/lending_fUSD_20260617
["ID","MTS","AMOUNT","RATE_DAILY","PERIOD"]
[425225387,1781626247000,-218.073132,0.00024658,2]
[425225394,1781626247000,-255.458441,0.00024658,2]
[425225392,1781626247000,-218.073128,0.00024658,2]
[425225388,1781626247000,-218.073132,0.00024658,2]
[425225391,1781626247000,-218.073132,0.00024658,2]
[425225390,1781626247000,-218.073132,0.00024658,2]
[425225396,1781626247000,-255.458441,0.00024658,2]
[425225404,1781626247000,-255.458441,0.00024658,2]
[425225395,1781626247000,-255.458441,0.00024658,2]
[425225397,1781626247000,-255.458441,0.00024658,2]
[425225405,1781626247000,-255.458441,0.00024658,2]
[425225399,1781626247000,-255.458441,0.00024658,2]
[425225389,1781626247000,-218.073132,0.00024658,2]
[425225398,1781626247000,-255.458441,0.00024658,2]
[425225412,1781626247000,-255.458441,0.00024658,2]
[425225410,1781626247000,-255.458441,0.00024658,2]
[425225409,1781626247000,-407.671554,0.00024658,2]
[425225403,1781626247000,-255.458441,0.00024658,2]
[425225407,1781626247000,-407.671554,0.00024658,2]
[425225408,1781626247000,-255.458441,0.00024658,2]
[425225411,1781626247000,-407.671554,0.00024658,2]
[425225406,1781626247000,-255.458441,0.00024658,2]
[425225402,1781626247000,-255.458441,0.00024658,2]
[425225400,1781626247000,-255.458441,0.00024658,2]
[425225401,1781626247000,-255.458441,0.00024658,2]
[425225413,1781626247000,-407.671554,0.00024658,2]
[425225479,1781626248000,-472.24074205,0.00025,2]
[425225482,1781626248000,-347.53,0.00025,2]
[425225483,1781626248000,-347.53,0.00025,2]
[425225477,1781626248000,-655.86406734,0.00025,2]
[425225464,1781626248000,-2467.96,0.00025,7]
[425225474,1781626248000,-150.0,0.00025,2]
[425225475,1781626248000,-150.0,0.00025,2]
[425225484,1781626248000,-347.53,0.00025,2]
[425225469,1781626248000,-561.55258274,0.00025,2]
[425225476,1781626248000,-150.964,0.00025,2]
[425225478,1781626248000,-640.10129498,0.00025,2]
[425225487,1781626248000,-347.53,0.00025,2]
[425225481,1781626248000,-347.53,0.00025,2]
[425225486,1781626248000,-347.53,0.00025,2]
[425225485,1781626248000,-347.53,0.00025,2]
[425225488,1781626248000,-347.53,0.00025,2]
[425225491,1781626248000,-784.0,0.00025027,5]
[425225489,1781626248000,-347.53,0.00025,2]
[425225490,1781626248000,-347.53,0.00025,2]
[425225493,1781626248000,-206.0,0.00025073,2]
[425225492,1781626248000,-7815.0,0.00025027,3]
[425225494,1781626248000,-152.0,0.00025136,10]
[425225472,1781626248000,-989.0,0.00025,2]
[425225480,1781626248000,-2829.86918073,0.00025,2]
[425225468,1781626248000,-617.70665361,0.00025,2]
[425225454,1781626248000,-912458.84656467,0.00025,2]
[425225470,1781626248000,-1791.8162992,0.00025,2]
[425225448,1781626248000,-151.0,0.0002474,2]
[425225443,1781626248000,-599.60298507,0.0002474,2]
[425225447,1781626248000,-2405.55389863,0.0002474,2]
[425225449,1781626248000,-242.15909246,0.0002474,2]
[425225451,1781626248000,-22712.36,0.00024942,7]
[425225444,1781626248000,-151.0,0.0002474,2]
[425225446,1781626248000,-209.40437684,0.0002474,2]
[425225445,1781626248000,-200.0,0.0002474,2]
[425225452,1781626248000,-396.16,0.00024957,2]
[425225450,1781626248000,-350.0,0.00024902,6]
[425225453,1781626248000,-41027.98923796,0.00025,7]
[425225466,1781626248000,-475.41900411,0.00025,2]
[425225456,1781626248000,-326.0,0.00025,2]
[425225459,1781626248000,-200.0,0.00025,2]
[425225460,1781626248000,-4347.17820744,0.00025,2]
[425225458,1781626248000,-4221.0,0.00025,2]
[425225461,1781626248000,-1359.16189203,0.00025,4]
[425225457,1781626248000,-629.86089109,0.00025,5]
[425225462,1781626248000,-150.0,0.00025,2]
[425225463,1781626248000,-1005.49960531,0.00025,2]
[425225465,1781626248000,-408.0,0.00025,2]
[425225467,1781626248000,-1119.35838667,0.00025,2]
[425225473,1781626248000,-219.09625852,0.00025,2]
[425225471,1781626248000,-404.45897306,0.00025,2]
[425225455,1781626248000,-44194.81681698,0.00025,2]
[425225495,1781626248000,-1471.78,0.00025231,2]
[425225496,1781626248000,-621.78829552,0.00025288,2]
[425225506,1781626248000,-286.68393543,0.00025397,2]
[425225520,1781626248000,-27490.47687194,0.00026,10]
[425225527,1781626248000,-2000.0,0.00026,7]
[425225530,1781626248000,-162.37851493,0.00026027,3]
[425225531,1781626248000,-2062.77,0.00026027,2]
[425225529,1781626248000,-419.0,0.00026006,2]
[425225536,1781626248000,-500.0,0.00026096,7]
[425225532,1781626248000,-522.09,0.00026027,7]
[425225535,1781626248000,-700.0,0.00026096,7]
[425225538,1781626248000,-152.0,0.00026136,12]
[425225533,1781626248000,-188.04,0.00026027,7]
[425225537,1781626248000,-223.65,0.00026099,10]
[425225526,1781626248000,-160.0,0.00026,10]
[425225539,1781626248000,-285.0,0.00026194,7]
[425225543,1781626248000,-2633.588058,0.00026384,2]
[425225542,1781626248000,-5528.0,0.000263,5]
[425225546,1781626248000,-2633.588058,0.00026384,2]
[425225541,1781626248000,-2717.0,0.00026296,2]
[425225544,1781626248000,-2633.588058,0.00026384,2]
[425225545,1781626248000,-2633.588058,0.00026384,2]
[425225550,1781626248000,-2633.588058,0.00026384,2]
[425225548,1781626248000,-2633.588058,0.00026384,2]
[425225547,1781626248000,-2633.588058,0.00026384,2]
[425225549,1781626248000,-2633.588058,0.00026384,2]
[425225497,1781626248000,-151.0,0.00025288,2]
[425225540,1781626248000,-350.0,0.00026288,7]
[425225522,1781626248000,-150.0,0.00026,2]
[425225534,1781626248000,-150.0,0.00026028,2]
[425225523,1781626248000,-22851.35665026,0.00026,2]
[425225519,1781626248000,-260.4103811,0.00025836,2]
[425225505,1781626248000,-218.9077334,0.00025397,2]
[425225498,1781626248000,-200.0,0.00025288,2]
[425225503,1781626248000,-3558.0,0.00025306,2]
[425225500,1781626248000,-2494.55939288,0.00025288,2]
[425225499,1781626248000,-217.15233878,0.00025288,2]
[425225502,1781626248000,-251.11897888,0.00025288,2]
[425225501,1781626248000,-151.0,0.00025288,2]
[425225507,1781626248000,-11624.86,0.000254,2]
[425225509,1781626248000,-158.71518379,0.00025488,2]
[425225513,1781626248000,-542.74990657,0.00025836,2]
[425225516,1781626248000,-225.18697532,0.00025836,2]
[425225504,1781626248000,-2062.77,0.00025342,2]
[425225514,1781626248000,-151.0,0.00025836,2]
[425225515,1781626248000,-200.0,0.00025836,2]
[425225524,1781626248000,-85056.0,0.00026,2]
[425225521,1781626248000,-4150.0,0.00026,2]
[425225518,1781626248000,-151.0,0.00025836,2]
[425225528,1781626248000,-6078.0,0.00026006,2]
[425225525,1781626248000,-550.0,0.00026,2]
[425225508,1781626248000,-5528.0,0.000254,3]
[425225511,1781626248000,-152.0,0.00025636,11]
[425225517,1781626248000,-2586.85809042,0.00025836,2]
[425225512,1781626248000,-207.49,0.00025821,2]
[425225510,1781626248000,-350.0,0.00025605,6]
[425225592,1781626249000,-200.0,0.00026888,2]
[425225581,1781626249000,-1000.0,0.0002652,2]
[425225583,1781626249000,-22712.36,0.00026589,7]
[425225590,1781626249000,-525.0,0.00026881,10]
[425225584,1781626249000,-396.19,0.00026601,2]
[425225586,1781626249000,-2062.77,0.00026712,2]
[425225582,1781626249000,-1106.0,0.00026551,2]
[425225580,1781626249000,-2000.0,0.0002652,2]
[425225585,1781626249000,-152.0,0.00026637,13]
[425225591,1781626249000,-5213.0,0.00026881,10]
[425225587,1781626249000,-200.0,0.00026725,2]
[425225600,1781626249000,-2781.82699784,0.00026932,2]
[425225588,1781626249000,-200.0,0.00026726,2]
[425225593,1781626249000,-200.0,0.0002689,2]
[425225594,1781626249000,-200.0,0.00026891,2]
[425225599,1781626249000,-242.15909246,0.00026932,2]
[425225596,1781626249000,-200.0,0.00026891,2]
[425225601,1781626249000,-151.0,0.00026932,2]
[425225604,1781626249000,-4136.0,0.00027,2]
[425225603,1781626249000,-350.0,0.00026953,8]
[425225595,1781626249000,-200.0,0.00026891,2]
[425225598,1781626249000,-200.0,0.00026932,2]
[425225576,1781626249000,-322.2837309,0.00026397,2]
[425225589,1781626249000,-200.0,0.00026774,2]
[425225578,1781626249000,-346.75591874,0.00026397,2]
[425225552,1781626249000,-2633.588058,0.00026384,2]
[425225579,1781626249000,-2467.96,0.000264,7]
[425225555,1781626249000,-2633.588058,0.00026384,2]
[425225553,1781626249000,-2633.588058,0.00026384,2]
[425225554,1781626249000,-2633.588058,0.00026384,2]
[425225551,1781626249000,-2633.588058,0.00026384,2]
[425225559,1781626249000,-2633.588058,0.00026384,2]
[425225556,1781626249000,-2633.588058,0.00026384,2]
[425225557,1781626249000,-2633.588058,0.00026384,2]
[425225558,1781626249000,-2633.588058,0.00026384,2]
[425225560,1781626249000,-2633.588058,0.00026384,2]
[425225561,1781626249000,-2633.588058,0.00026384,2]
[425225563,1781626249000,-151.0,0.00026384,2]
[425225577,1781626249000,-318.72810644,0.00026397,2]
[425225564,1781626249000,-200.0,0.00026384,2]
[425225570,1781626249000,-324.67339756,0.00026397,2]
[425225566,1781626249000,-2682.57183977,0.00026384,2]
[425225565,1781626249000,-233.5188934,0.00026384,2]
[425225562,1781626249000,-2633.588062,0.00026384,2]
[425225568,1781626249000,-270.0455652,0.00026384,2]
[425225571,1781626249000,-286.67603356,0.00026397,2]
[425225567,1781626249000,-151.0,0.00026384,2]
[425225572,1781626249000,-286.80258334,0.00026397,2]
[425225573,1781626249000,-334.32512946,0.00026397,2]
[425225575,1781626249000,-286.68393543,0.00026397,2]
[425225574,1781626249000,-355.64949322,0.00026397,2]
[425225569,1781626249000,-218.9077334,0.00026397,2]
[425225602,1781626249000,-280.03725111,0.00026932,2]
[425225597,1781626249000,-151.0,0.00026932,2]
[425225614,1781626249000,-169.88565726,0.00027098,7]
[425225635,1781626249000,-169.50673699,0.00027153,7]
[425225636,1781626249000,-156.73219586,0.00027153,7]
[425225638,1781626249000,-167.8996093,0.00027153,7]
[425225640,1781626249000,-188.73372065,0.00027204,7]
[425225639,1781626249000,-150.35640828,0.00027157,7]
[425225647,1781626249000,-207.47573982,0.00027204,7]
[425225641,1781626249000,-166.87963428,0.00027204,7]
[425225644,1781626249000,-167.07093059,0.00027204,7]
[425225645,1781626249000,-163.89626675,0.00027204,7]
[425225643,1781626249000,-199.92082755,0.00027204,7]
[425225642,1781626249000,-156.96983573,0.00027204,7]
[425225634,1781626249000,-185.41267879,0.00027153,7]
[425225648,1781626249000,-180.87596789,0.00027204,7]
[425225650,1781626249000,-184.26071437,0.00027204,7]
[425225657,1781626249000,-197.30617058,0.00027209,7]
[425225656,1781626249000,-152.28239513,0.00027209,7]
[425225652,1781626249000,-163.56018221,0.00027204,7]
[425225655,1781626249000,-207.7777157,0.00027209,7]
[425225651,1781626249000,-183.2928844,0.00027204,7]
[425225658,1781626249000,-152.24773713,0.00027225,7]
[425225653,1781626249000,-174.74244786,0.00027204,7]
[425225659,1781626249000,-208.8678572,0.00027225,7]
[425225654,1781626249000,-155.69942835,0.00027209,7]
[425225605,1781626249000,-150.0,0.00027,2]
[425225649,1781626249000,-150.26524481,0.00027204,7]
[425225633,1781626249000,-670.0,0.00027144,2]
[425225646,1781626249000,-166.95943528,0.00027204,7]
[425225632,1781626249000,-2000.0,0.00027144,2]
[425225609,1781626249000,-192.92857259,0.00027093,7]
[425225631,1781626249000,-182.68904542,0.00027144,7]
[425225608,1781626249000,-236.55992117,0.00027093,7]
[425225612,1781626249000,-150.83035163,0.00027098,7]
[425225611,1781626249000,-170.11498282,0.00027093,7]
[425225610,1781626249000,-154.86342167,0.00027093,7]
[425225606,1781626249000,-197.12034544,0.00027093,7]
[425225613,1781626249000,-267.46713503,0.00027098,7]
[425225616,1781626249000,-166.60991023,0.00027098,5]
[425225615,1781626249000,-169.04540205,0.00027098,2]
[425225617,1781626249000,-329.41856146,0.00027098,7]
[425225618,1781626249000,-163.58847416,0.00027098,7]
[425225627,1781626249000,-678.0,0.00027123,2]
[425225607,1781626249000,-174.2577089,0.00027093,7]
[425225629,1781626249000,-755.0,0.00027137,2]
[425225630,1781626249000,-152.0,0.00027137,14]
[425225619,1781626249000,-175.5455824,0.00027098,7]
[425225637,1781626249000,-179.39951827,0.00027153,7]
[425225628,1781626249000,-286.0,0.00027123,2]
[425225623,1781626249000,-152.0,0.00027123,2]
[425225625,1781626249000,-228.0,0.00027123,2]
[425225624,1781626249000,-212.0,0.00027123,2]
[425225622,1781626249000,-8512.14355348,0.00027111,2]
[425225621,1781626249000,-184.36702486,0.00027098,7]
[425225620,1781626249000,-179.74540993,0.00027098,7]
[425225626,1781626249000,-212.0,0.00027123,2]
[425225696,1781626250000,-1000.0,0.00027397,2]
[425225699,1781626250000,-1000.0,0.00027397,2]
[425225697,1781626250000,-1000.0,0.00027397,2]
[425225694,1781626250000,-1000.0,0.00027397,2]
[425225698,1781626250000,-1000.0,0.00027397,2]
[425225689,1781626250000,-1000.0,0.00027397,2]
[425225691,1781626250000,-1000.0,0.00027397,2]
[425225690,1781626250000,-1000.0,0.00027397,2]
[425225687,1781626250000,-1000.0,0.00027397,2]
[425225700,1781626250000,-1000.0,0.00027397,2]
[425225695,1781626250000,-1000.0,0.00027397,2]
[425225703,1781626250000,-995.39399969,0.00027397,2]
[425225708,1781626250000,-864.92,0.00027397,2]
[425225701,1781626250000,-1000.0,0.00027397,2]
[425225704,1781626250000,-605.65135585,0.00027397,2]
[425225715,1781626250000,-864.92,0.00027397,2]
[425225705,1781626250000,-864.92,0.00027397,2]
[425225709,1781626250000,-864.92,0.00027397,2]
[425225706,1781626250000,-864.92,0.00027397,2]
[425225713,1781626250000,-864.92,0.00027397,2]
[425225712,1781626250000,-864.92,0.00027397,2]
[425225714,1781626250000,-864.92,0.00027397,2]
[425225707,1781626250000,-864.92,0.00027397,2]
[425225711,1781626250000,-864.92,0.00027397,2]
[425225688,1781626250000,-1000.0,0.00027397,2]
[425225702,1781626250000,-1000.0,0.00027397,2]
[425225692,1781626250000,-1000.0,0.00027397,2]
[425225660,1781626250000,-151.23124814,0.00027225,7]
[425225685,1781626250000,-1000.0,0.00027397,2]
[425225710,1781626250000,-864.92,0.00027397,2]
[425225662,1781626250000,-189.29282162,0.00027225,7]
[425225661,1781626250000,-178.20439403,0.00027225,7]
[425225671,1781626250000,-394.0,0.00027365,7]
[425225666,1781626250000,-2000.0,0.00027359,2]
[425225664,1781626250000,-552.0,0.00027325,2]
[425225670,1781626250000,-1836.0,0.00027359,2]
[425225667,1781626250000,-2000.0,0.00027359,2]
[425225668,1781626250000,-2000.0,0.00027359,2]
[425225665,1781626250000,-2000.0,0.00027359,2]
[425225663,1781626250000,-2000.0,0.00027325,2]
[425225669,1781626250000,-2000.0,0.00027359,2]
[425225672,1781626250000,-3642.08,0.00027374,7]
[425225673,1781626250000,-4533.68641657,0.0002739,7]
[425225675,1781626250000,-1000.0,0.00027397,2]
[425225678,1781626250000,-1000.0,0.00027397,2]
[425225679,1781626250000,-1000.0,0.00027397,2]
[425225674,1781626250000,-500.0,0.00027397,2]
[425225680,1781626250000,-1000.0,0.00027397,2]
[425225677,1781626250000,-1000.0,0.00027397,2]
[425225681,1781626250000,-1000.0,0.00027397,2]
[425225676,1781626250000,-1022.26451252,0.00027397,2]
[425225683,1781626250000,-1000.0,0.00027397,2]
[425225693,1781626250000,-1000.0,0.00027397,2]
[425225686,1781626250000,-1000.0,0.00027397,2]
[425225684,1781626250000,-1000.0,0.00027397,2]
[425225717,1781626250000,-864.92,0.00027397,7]
[425225682,1781626250000,-1000.0,0.00027397,2]
[425225716,1781626250000,-864.92,0.00027397,2]
[425225747,1781626250000,-926.87,0.00027397,2]
[425225748,1781626250000,-926.87,0.00027397,2]
[425225751,1781626250000,-926.87,0.00027397,2]
[425225774,1781626250000,-3000.0,0.00027397,2]
[425225753,1781626250000,-926.87,0.00027397,2]
[425225758,1781626250000,-926.87,0.00027397,2]
[425225752,1781626250000,-926.87,0.00027397,2]
[425225763,1781626250000,-426.89355088,0.00027397,2]
[425225762,1781626250000,-500.0,0.00027397,2]
[425225756,1781626250000,-926.87,0.00027397,2]
[425225755,1781626250000,-926.87,0.00027397,2]
[425225757,1781626250000,-926.87,0.00027397,2]
[425225744,1781626250000,-926.87,0.00027397,2]
[425225759,1781626250000,-926.87,0.00027397,2]
[425225760,1781626250000,-926.87,0.00027397,2]
[425225765,1781626250000,-233.53630742,0.00027397,7]
[425225767,1781626250000,-500.0,0.00027397,15]
[425225766,1781626250000,-206.82456716,0.00027397,7]
[425225764,1781626250000,-191.12262362,0.00027397,7]
[425225768,1781626250000,-500.0,0.00027397,15]
[425225769,1781626250000,-500.0,0.00027397,15]
[425225771,1781626250000,-500.0,0.00027397,15]
[425225772,1781626250000,-502.58377949,0.00027397,15]
[425225773,1781626250000,-3000.0,0.00027397,2]
[425225770,1781626250000,-500.0,0.00027397,15]
[425225718,1781626250000,-864.92,0.00027397,7]
[425225761,1781626250000,-926.87,0.00027397,2]
[425225746,1781626250000,-926.87,0.00027397,2]
[425225754,1781626250000,-926.87,0.00027397,2]
[425225749,1781626250000,-926.87,0.00027397,2]
[425225745,1781626250000,-926.87,0.00027397,2]
[425225720,1781626250000,-864.92,0.00027397,7]
[425225719,1781626250000,-864.92,0.00027397,7]
[425225722,1781626250000,-864.92,0.00027397,7]
[425225721,1781626250000,-864.92,0.00027397,7]
[425225723,1781626250000,-864.92,0.00027397,7]
[425225724,1781626250000,-864.92,0.00027397,7]
[425225726,1781626250000,-864.92,0.00027397,7]
[425225727,1781626250000,-864.92,0.00027397,7]
[425225730,1781626250000,-500.0,0.00027397,2]
[425225728,1781626250000,-865.03153067,0.00027397,7]
[425225729,1781626250000,-500.28796441,0.00027397,2]
[425225732,1781626250000,-500.0,0.00027397,2]
[425225725,1781626250000,-864.92,0.00027397,7]
[425225741,1781626250000,-926.87,0.00027397,2]
[425225731,1781626250000,-500.0,0.00027397,2]
[425225742,1781626250000,-926.87,0.00027397,2]
[425225750,1781626250000,-926.87,0.00027397,2]
[425225743,1781626250000,-926.87,0.00027397,2]
[425225740,1781626250000,-926.87,0.00027397,2]
[425225737,1781626250000,-1000.0,0.00027397,2]
[425225739,1781626250000,-926.87,0.00027397,2]
[425225738,1781626250000,-500.0,0.00027397,2]
[425225736,1781626250000,-1000.0,0.00027397,2]
[425225735,1781626250000,-490.8325641,0.00027397,2]
[425225734,1781626250000,-500.0,0.00027397,2]
[425225733,1781626250000,-500.0,0.00027397,2]
[425225816,1781626251000,-300.0,0.00027397,2]
[425225815,1781626251000,-300.0,0.00027397,2]
[425225818,1781626251000,-300.0,0.00027397,2]
[425225826,1781626251000,-1000.0,0.00027397,2]
[425225817,1781626251000,-300.0,0.00027397,2]
[425225809,1781626251000,-500.0,0.00027397,2]
[425225806,1781626251000,-500.0,0.00027397,2]
[425225810,1781626251000,-500.0,0.00027397,2]
[425225812,1781626251000,-351.89825629,0.00027397,2]
[425225811,1781626251000,-500.0,0.00027397,2]
[425225807,1781626251000,-500.0,0.00027397,2]
[425225825,1781626251000,-1000.0,0.00027397,2]
[425225813,1781626251000,-150.0,0.00027397,2]
[425225814,1781626251000,-500.0,0.00027397,2]
[425225833,1781626251000,-1000.0,0.00027397,2]
[425225819,1781626251000,-300.0,0.00027397,2]
[425225821,1781626251000,-300.0,0.00027397,2]
[425225820,1781626251000,-300.0,0.00027397,2]
[425225822,1781626251000,-300.0,0.00027397,2]
[425225823,1781626251000,-175.65698095,0.00027397,2]
[425225828,1781626251000,-1000.0,0.00027397,2]
[425225830,1781626251000,-1000.0,0.00027397,2]
[425225835,1781626251000,-1000.0,0.00027397,2]
[425225829,1781626251000,-1000.0,0.00027397,2]
[425225827,1781626251000,-1000.0,0.00027397,2]
[425225838,1781626251000,-1000.0,0.00027397,2]
[425225839,1781626251000,-1000.0,0.00027397,2]
[425225808,1781626251000,-500.0,0.00027397,2]
[425225824,1781626251000,-1000.0,0.00027397,2]
[425225805,1781626251000,-500.0,0.00027397,2]
[425225776,1781626251000,-3000.0,0.00027397,2]
[425225804,1781626251000,-500.0,0.00027397,2]
[425225775,1781626251000,-3000.0,0.00027397,2]
[425225834,1781626251000,-1000.0,0.00027397,2]
[425225779,1781626251000,-3000.0,0.00027397,2]
[425225777,1781626251000,-3000.0,0.00027397,2]
[425225785,1781626251000,-3000.0,0.00027397,2]
[425225778,1781626251000,-3000.0,0.00027397,2]
[425225780,1781626251000,-3000.0,0.00027397,2]
[425225782,1781626251000,-3000.0,0.00027397,2]
[425225787,1781626251000,-3000.0,0.00027397,2]
[425225783,1781626251000,-3000.0,0.00027397,2]
[425225781,1781626251000,-3000.0,0.00027397,2]
[425225784,1781626251000,-3000.0,0.00027397,2]
[425225786,1781626251000,-3000.0,0.00027397,2]
[425225803,1781626251000,-500.0,0.00027397,2]
[425225788,1781626251000,-3000.0,0.00027397,2]
[425225800,1781626251000,-500.0,0.00027397,2]
[425225801,1781626251000,-500.0,0.00027397,2]
[425225789,1781626251000,-3000.0,0.00027397,2]
[425225791,1781626251000,-2851.95187083,0.00027397,2]
[425225793,1781626251000,-150.0,0.00027397,2]
[425225796,1781626251000,-150.0,0.00027397,2]
[425225792,1781626251000,-2062.77,0.00027397,2]
[425225794,1781626251000,-150.0,0.00027397,2]
[425225799,1781626251000,-273.39628625,0.00027397,2]
[425225798,1781626251000,-500.0,0.00027397,2]
[425225797,1781626251000,-500.0,0.00027397,2]
[425225795,1781626251000,-500.0,0.00027397,2]
[425225802,1781626251000,-500.0,0.00027397,2]
[425225790,1781626251000,-3000.0,0.00027397,2]
[425225831,1781626251000,-1000.0,0.00027397,2]
[425225832,1781626251000,-1000.0,0.00027397,2]
[425225836,1781626251000,-1000.0,0.00027397,2]
[425225869,1781626251000,-1000.0,0.00027397,2]
[425225871,1781626251000,-1000.0,0.00027397,2]
[425225870,1781626251000,-1000.0,0.00027397,2]
[425225873,1781626251000,-1000.0,0.00027397,2]
[425225868,1781626251000,-1000.0,0.00027397,2]
[425225874,1781626251000,-1000.0,0.00027397,2]
[425225878,1781626251000,-1000.0,0.00027397,2]
[425225880,1781626251000,-1000.0,0.00027397,2]
[425225879,1781626251000,-1000.0,0.00027397,2]
[425225889,1781626251000,-1000.0,0.00027397,2]
[425225883,1781626251000,-1000.0,0.00027397,2]
[425225881,1781626251000,-1000.0,0.00027397,2]
[425225886,1781626251000,-1000.0,0.00027397,2]
[425225872,1781626251000,-1000.0,0.00027397,2]
[425225882,1781626251000,-1000.0,0.00027397,2]
[425225885,1781626251000,-1000.0,0.00027397,2]
[425225888,1781626251000,-1000.0,0.00027397,2]
[425225887,1781626251000,-1000.0,0.00027397,2]
[425225890,1781626251000,-1000.0,0.00027397,2]
[425225892,1781626251000,-1000.0,0.00027397,2]
[425225891,1781626251000,-1000.0,0.00027397,2]
[425225895,1781626251000,-1000.0,0.00027397,2]
[425225897,1781626251000,-1000.0,0.00027397,2]
[425225900,1781626251000,-1000.0,0.00027397,2]
[425225896,1781626251000,-1000.0,0.00027397,2]
[425225893,1781626251000,-1000.0,0.00027397,2]
[425225899,1781626251000,-1000.0,0.00027397,2]
[425225898,1781626251000,-1000.0,0.00027397,2]
[425225884,1781626251000,-1000.0,0.00027397,2]
[425225867,1781626251000,-1000.0,0.00027397,2]
[425225894,1781626251000,-1000.0,0.00027397,2]
[425225877,1781626251000,-1000.0,0.00027397,2]
[425225876,1781626251000,-1000.0,0.00027397,2]
[425225837,1781626251000,-1000.0,0.00027397,2]
[425225840,1781626251000,-1000.0,0.00027397,2]
[425225841,1781626251000,-1000.0,0.00027397,2]
[425225848,1781626251000,-1000.0,0.00027397,2]
[425225843,1781626251000,-1000.0,0.00027397,2]
[425225844,1781626251000,-1000.0,0.00027397,2]
[425225842,1781626251000,-1000.0,0.00027397,2]
[425225852,1781626251000,-1000.0,0.00027397,2]
[425225845,1781626251000,-1000.0,0.00027397,2]
[425225846,1781626251000,-1000.0,0.00027397,2]
[425225847,1781626251000,-1000.0,0.00027397,2]
[425225850,1781626251000,-1000.0,0.00027397,2]
[425225849,1781626251000,-1000.0,0.00027397,2]
[425225851,1781626251000,-1000.0,0.00027397,2]
[425225856,1781626251000,-1000.0,0.00027397,2]
[425225855,1781626251000,-1000.0,0.00027397,2]
[425225866,1781626251000,-1000.0,0.00027397,2]
[425225859,1781626251000,-1000.0,0.00027397,2]
[425225864,1781626251000,-1000.0,0.00027397,2]
[425225861,1781626251000,-1000.0,0.00027397,2]
[425225863,1781626251000,-1000.0,0.00027397,2]
[425225854,1781626251000,-1000.0,0.00027397,2]
[425225865,1781626251000,-1000.0,0.00027397,2]
[425225853,1781626251000,-1000.0,0.00027397,2]
[425225862,1781626251000,-1000.0,0.00027397,2]
[425225857,1781626251000,-1000.0,0.00027397,2]
[425225875,1781626251000,-1000.0,0.00027397,2]
[425225858,1781626251000,-1000.0,0.00027397,2]
[425225860,1781626251000,-1000.0,0.00027397,2]
[425225942,1781626252000,-151.0,0.00027397,2]
[425225935,1781626252000,-151.0,0.00027397,2]
[425225936,1781626252000,-151.0,0.00027397,2]
[425225930,1781626252000,-151.0,0.00027397,2]
[425225932,1781626252000,-151.0,0.00027397,2]
[425225939,1781626252000,-151.0,0.00027397,2]
[425225937,1781626252000,-151.0,0.00027397,2]
[425225938,1781626252000,-151.0,0.00027397,2]
[425225941,1781626252000,-238.014868,0.00027397,2]
[425225951,1781626252000,-1728.894622,0.00027397,2]
[425225934,1781626252000,-151.0,0.00027397,2]
[425225933,1781626252000,-151.0,0.00027397,2]
[425225946,1781626252000,-151.0,0.00027397,2]
[425225943,1781626252000,-151.0,0.00027397,2]
[425225944,1781626252000,-151.0,0.00027397,2]
[425225945,1781626252000,-151.0,0.00027397,2]